Cogmind - Beta 13 *** ADVENTURER MODE // 2024.04.02 @ 15:48:40 Player: look at yourself Result: Destroyed by US-NPG(R) with Subdweller Beam Cannon Performance ------------- Evolutions (0) 0 Regions Visited (3) 600 Robots Destroyed (22) 110 Value Destroyed (528) 528 Prototype IDs (14) 280 Alien Tech Used (0) 0 Bonus (35) 35 TOTAL SCORE: 1553 Bonus ------- Follower Combat Kills 35 Cogmind --------- Core Integrity 0/250 Matter 272/300 Energy 91/100 System Corruption 0% Temperature Cool (65) Movement Core (300) Ox5 Location -10/Subcaves Parts ------- > --- POWER (1) -------- (None) > --- PROPULSION (2) --- (None) > --- UTILITY (2) ------ Medium Storage Unit Targeting Computer > --- WEAPON (2) ------- Autogun Autogun > --- INVENTORY (10) --- Subdweller Monowheel Subdweller Monowheel Subdweller Laser Powered Cannon Light Assault Rifle Autogun Scrap Shield Fragment (45) Peak State ------------ > --- POWER ------------ Ion Engine > --- PROPULSION ------- Compact Wheel Subdweller Monowheel > --- UTILITY ---------- Medium Storage Unit Targeting Computer > --- WEAPON ----------- Subdweller Laser Autogun > --- INVENTORY -------- Subdweller Monowheel Subdweller Monowheel Powered Cannon Light Assault Rifle Autogun Autogun Scrap Shield Fragment [Rating: 12] Favorites ----------- Power Ion Engine Engine Ion Engine Propulsion Compact Wheel Wheel Compact Wheel Utility Medium Storage Unit Storage Medium Storage Unit Processor Targeting Computer Weapon Autogun Energy Gun Subdweller Laser Ballistic Gun Autogun Ballistic Cannon Light Cannon Build | -11 -10 -10 -10 ------- Run | Yrd Mat Min Sub Slots Evolved . | . . . . Power . | . . . . Propulsion . | . . . . Utility . | . . . . Weapon . | . . . . Parts Attached 15 | 5 6 . 4 Power 1 | 1 . . . Engine 1 | 1 . . . Core . | . . . . Reactor . | . . . . Propulsion 3 | 2 . . 1 Treads . | . . . . Leg . | . . . . Wheel 3 | 2 . . 1 Hover . | . . . . Flight . | . . . . Utility 3 | . 3 . . Device . | . . . . Storage 1 | . 1 . . Processor 2 | . 2 . . Hackware . | . . . . Protection . | . . . . Artifact . | . . . . Weapon 8 | 2 3 . 3 Energy Gun 1 | . . . 1 Energy Cannon . | . . . . Ballistic Gun 6 | 2 2 . 2 Ballistic Cannon 1 | . 1 . . Launcher . | . . . . Special Weapon . | . . . . Impact Weapon . | . . . . Slashing Weapon . | . . . . Piercing Weapon . | . . . . Special Melee Weapon . | . . . . Unidentified Prototypes . | . . . . Parts Lost 3 | . . . 3 Power 1 | . . . 1 Propulsion 2 | . . . 2 Utility . | . . . . Weapon . | . . . . Highest Loss Streak 3 | . . . 3 To Critical Strikes . | . . . . Average Slot Usage (%) 97 | . 92 100 99 Engine 13 | . 14 14 13 Wheel 27 | . 28 28 27 Storage 12 | . 10 14 14 Processor 13 | . 11 14 14 Ballistic Gun 26 | . 25 28 26 Naked Turns . | . . . . Heaviest Build 22 | 8 21 21 22 Greatest Support 36 | 26 26 26 36 Greatest Overweight (x) 6 | . . . 6 Average Overweight (x) . | . . . 1 Largest Inventory Capacity 10 | 5 10 10 10 Average Capacity 9 | 5 8 10 10 Most Carried 9 | 5 5 3 9 Average Carried 3 | 1 2 3 5 Final Capacity 10 | 5 10 10 10 Final Carried 8 | . 3 3 8 Class Distribution -------------------- 100% | Mutant Dominant Class ---------------- Mutant | -10/Materials Mutant | -10/Mines Mutant | -10/Subcaves Resources | -11 -10 -10 -10 ----------- Run | Yrd Mat Min Sub Matter Collected 804 | 249 330 40 185 Remotely . | . . . . Salvage Created 708 | . 403 57 248 Parts 52 | . 27 10 15 Haulers Intercepted 2 | . 2 . . Recyclers Shooed . | . . . . Parts Field Recycled . | . . . . Retrieved Matter . | . . . . Parts Self-Destructed 5 | . . . 5 Prevented . | . . . . Kills | -11 -10 -10 -10 ------- Run | Yrd Mat Min Sub Combat Hostiles Destroyed 17 | . 8 4 5 Guns 17 | . 8 4 5 Classes Destroyed 5 | . 4 . 1 Hauler 2 | . 2 . . Watcher 3 | . 3 . . Swarmer 7 | . 3 4 . Grunt 5 | . 5 . . Subdweller 5 | . . . 5 Best Kill Streak 5 | . 5 2 2 Combat Bots Only 4 | . 4 2 2 Max Kills in Single Turn 2 | . 2 1 1 Gunslinging 1 | . 1 . . Exploded . | . . . . Melee . | . . . . Uniques/NPCs Destroyed . | . . . . Combat | -11 -10 -10 -10 -------- Run | Yrd Mat Min Sub Hostile Shots Fired 57 | . 15 8 34 Missed 19 | . 4 4 11 Damage Taken 646 | . 103 26 517 Core 255 | . 30 7 218 Absorbed by Shields . | . . . . Ignored by Resistances 166 | . 34 8 124 Core Remaining (%) 100 | 100 . . . Volleys Fired 70 | . 37 5 28 Largest 2 | . 2 2 2 Hottest 83 | . 55 46 83 Shots Fired 137 | . 74 10 53 Gun 126 | . 63 10 53 Cannon 11 | . 11 . . Launcher . | . . . . Special . | . . . . Kinetic 131 | . 74 10 47 Thermal 6 | . . . 6 Explosive . | . . . . Electromagnetic . | . . . . Robot Hit Streak 10 | . 9 6 10 Robot Miss Streak 3 | . 3 2 1 Penetration Max . | . . . . Secondary Targets 2 | . 1 1 . Max Gunslinging Chain 1 | . 1 1 . Shots Hit Robots 94 | . 50 5 39 Core Hits 34 | . 19 4 11 Critical Kills . | . . . . Critical Parts Destroyed 1 | . 1 . . Critical Strikes 1 | . 1 . . Destroy 1 | . 1 . . Melee Attacks . | . . . . Impact . | . . . . Slashing . | . . . . Piercing . | . . . . Sneak Attacks . | . . . . Combat Hostiles . | . . . . Follow-up Attacks . | . . . . Damage Inflicted 1454 | . 768 94 592 Guns 1342 | . 656 94 592 Cannons 112 | . 112 . . Explosions . | . . . . Melee . | . . . . Ramming . | . . . . Kinetic 1413 | . 768 94 551 Thermal 41 | . . . 41 Explosive . | . . . . Electromagnetic . | . . . . Impact . | . . . . Slashing . | . . . . Piercing . | . . . . Highest Corruption . | . . . . Average Corruption . | . . . . Corruption Purged . | . . . . Corruption Blocked . | . . . . Overload Shots . | . . . . Overflow Damage . | . . . . Projectiles . | . . . . Explosions . | . . . . Melee . | . . . . Knockbacks . | . . . . Impact . | . . . . Kinetic . | . . . . Secondary . | . . . . Self-Inflicted Damage . | . . . . Shots . | . . . . Rammed . | . . . . Targets Rammed . | . . . . Kicked . | . . . . Crushed . | . . . . Highest Temperature 203 | . 48 6 203 Average Temperature 29 | . 10 4 120 Received Heat Transfer 434 | . 69 . 365 Siege Activations . | . . . . Robots Corrupted . | . . . . Combat Hostiles . | . . . . Parts Fried . | . . . . Impact Corruptions . | . . . . Robots Melted . | . . . . Combat Hostiles . | . . . . Parts Melted . | . . . . Heat Transferred 50 | . . . 50 Parts Sabotaged . | . . . . Parts Stolen . | . . . . Parts Stripped . | . . . . Power Chain Reactions . | . . . . Alert | -11 -10 -10 -10 ------- Run | Yrd Mat Min Sub Peak Influence 193 | . 193 189 . Initial 36 | . . 36 . Average 65 | . 71 62 . Maximum Alert Level . | . . . . Low Security (%) 100 | 100 100 100 . Level 1 . | . . . . Level 2 . | . . . . Level 3 . | . . . . Level 4 . | . . . . Level 5 . | . . . . High Security . | . . . . Max Security . | . . . . Squads Dispatched . | . . . . Investigation . | . . . . Extermination . | . . . . Reinforcement . | . . . . Assault . | . . . . Garrison . | . . . . Intercept . | . . . . Searches Triggered . | . . . . Construction Impeded . | . . . . Haulers Reinforced . | . . . . Active Scanning Responses . | . . . . Cargo Convoy Interrupts . | . . . . Stealth | -11 -10 -10 -10 --------- Run | Yrd Mat Min Sub Distress Signals 1 | . 1 . . Communications Jammed . | . . . . Distress Signals . | . . . . Times Spotted 32 | . 15 9 8 Peak Tracking Total 4 | . 4 3 3 Tactical Retreats . | . . . . Traps | -11 -10 -10 -10 ------- Run | Yrd Mat Min Sub Traps Triggered 2 | . 1 . 1 Indirectly . | . . . . Trap Hack Attempts . | . . . . Triggered . | . . . . Disarmed . | . . . . Reprogrammed . | . . . . Reused . | . . . . Traps Extracted . | . . . . Installed . | . . . . Triggered . | . . . . Machines | -11 -10 -10 -10 ---------- Run | Yrd Mat Min Sub Machines Disabled 2 | . 1 . 1 Max in Single Turn 1 | . 1 . 1 Machines Repaired . | . . . . Machines Dismantled . | . . . . Machines Sabotaged . | . . . . Overloaded Fab Kills . | . . . . Hacking | -11 -10 -10 -10 --------- Run | Yrd Mat Min Sub Machines Accessed 8 | . 6 . 2 Terminals 6 | . 6 . . Fabricators . | . . . . Repair Stations . | . . . . Recycling Units . | . . . . Scanalyzers . | . . . . Garrison Access . | . . . . Total Hacks 32 | . 21 . 11 Successful 19 | . 8 . 11 Failed 12 | . 12 . . Catastrophic 1 | . 1 . . Database Lockouts 1 | . 1 . . Manual 13 | . 11 . 2 Terminals 21 | . 21 . . Fabricators . | . . . . Repair Stations . | . . . . Recycling Units . | . . . . Scanalyzers . | . . . . Garrison Access . | . . . . Terminal Hacks 17 | . 6 . 11 Record 10 | . . . 10 Robot Analysis 1 | . 1 . . Prototype ID Bank 2 | . 2 . . Level Access Points 1 | . 1 . . Locate Traps 1 | . 1 . . Registered Components 1 | . 1 . . Derelict Proto ID Bank 1 | . . . 1 Fabricator Hacks . | . . . . Repair Station Hacks . | . . . . Recycling Unit Hacks . | . . . . Scanalyzer . | . . . . Garrison Access Hacks . | . . . . Unauthorized Hacks 2 | . 2 . . Terminals 2 | . 2 . . Botnet 2 | . 2 . . Fabricators . | . . . . Repair Stations . | . . . . Recycling Units . | . . . . Scanalyzers . | . . . . Garrison Access . | . . . . Data Cores Recovered . | . . . . Used . | . . . . Hacking Detections 6 | . 6 . . Full Trace Events 1 | . 1 . . Feedback Events . | . . . . Feedback Blocked . | . . . . Robot Schematics Acquired . | . . . . Robots Built . | . . . . Authchips . | . . . . Time . | . . . . Total Robot Build Rating . | . . . . Part Schematics Acquired . | . . . . Parts Built . | . . . . Authchips . | . . . . Time . | . . . . Total Part Build Rating . | . . . . Parts Repaired . | . . . . Time . | . . . . Parts Recycled . | . . . . Recycled Matter . | . . . . Retrieved Matter . | . . . . Retrieved Components . | . . . . Parts Scanalyzed . | . . . . Part Schematics Acquired . | . . . . Parts Damaged . | . . . . Bothacking | -11 -10 -10 -10 ------------ Run | Yrd Mat Min Sub Used RIF Installer . | . . . . Robots Hacked . | . . . . Non-combat . | . . . . Combat . | . . . . Robot Hacks Applied . | . . . . Relay Couplers Released . | . . . . Fabnet Peak Effective % . | . . . . Robots Rewired . | . . . . Allies Hacked . | . . . . Hacks Repelled . | . . . . Allies | -11 -10 -10 -10 -------- Run | Yrd Mat Min Sub Total Allies 3 | . . 3 . Largest Group 3 | . . 3 2 Highest-Rated Group 40 | . . 40 32 Highest-Rated Ally 16 | . . 16 16 Total Orders . | . . . . Ally Attacks 13 | . . 10 3 Total Damage 148 | . . 112 36 Kills 6 | . . 6 . Allies Corrupted . | . . . . Allies Melted . | . . . . Intel | -11 -10 -10 -10 ------- Run | Yrd Mat Min Sub Robot Analysis Total 1 | . 1 . . Derelict Logs Recovered 2 | . . 1 1 Drone Launches . | . . . . Drone Recoveries . | . . . . Exploration | -11 -10 -10 -10 ------------- Run | Yrd Mat Min Sub Turns Passed 2183 | 39 691 667 786 Spaces Moved 1785 | 39 638 640 468 Core 99 | 15 . . 84 Treads . | . . . . Legs . | . . . . Wheels 1686 | 24 638 640 384 Hover . | . . . . Flight . | . . . . Fastest Speed 50 | 50 90 90 90 Average Speed 103 | 74 90 90 144 Slowest Speed 350 | 90 90 90 350 Overloaded Moves . | . . . . Propulsion Burnouts . | . . . . Robots Hopped . | . . . . Cave-ins Triggered . | . . . . Exploration Rate (%) 54 | 3 93 88 32 Regions Visited 3 Branch Regions 2 Pre-discovered Areas 1 | . . . 1 Known Exits Taken . | . . . . Unknown Exits Taken 3 | 1 1 1 . Scrap Searched 1 | . . 1 . Spaces Dug . | . . . . Terrain Destroyed . | . . . . Melee . | . . . . Projectile . | . . . . AOE . | . . . . Terrain Rammed . | . . . . Walls Destroyed . | . . . . Machines Disabled . | . . . . Actions | -11 -10 -10 -10 --------- Run | Yrd Mat Min Sub Total 1992 | 48 690 722 532 Wait 100 | . . 77 23 Move 1782 | 38 637 639 468 Hop . | . . . . Pick Up 19 | 5 8 . 6 Fast Attach . | . . . . Attach 10 | 5 4 . 1 Detach 1 | . . . 1 Swap 5 | . 2 . 3 Drop 4 | . 2 . 2 Fire 70 | . 37 5 28 Melee . | . . . . Ram . | . . . . Kick . | . . . . Crush . | . . . . Escape Stasis . | . . . . Rewire 1 | . . 1 . Trap . | . . . . Miscellaneous . | . . . . Route ------- -11/Scrapyard -10/Materials (discovered 5 exits: *Mat x3 / [*Min x2]) -10/Mines (discovered 3 exits: *Mat x2 / *Sub) -10/Subcaves History --------- Turn | Location | Event 21 | -11/Scrapyard | Discovered new exit (range 16) 40 | -11/Scrapyard | Entered Materials 91 | -10/Materials | Central database locked down 96 | -10/Materials | Discovered new exit (range 13) 198 | -10/Materials | Discovered new exit (range 15) 317 | -10/Materials | Build established: Mutant 334 | -10/Materials | Discovered new exit (range 17) 549 | -10/Materials | Identified exit to Materials 565 | -10/Materials | Discovered new exit (range 11) 731 | -10/Materials | Entered Mines 751 | -10/Mines | Assisted by bots powering up and referring to "LRC-V3" 819 | -10/Mines | Learned 2 Materials zone layouts 893 | -10/Mines | Discovered exit to Materials (range 4) 1125 | -10/Mines | Discovered exit to Materials (range 15) 1299 | -10/Mines | Discovered new exit (range 8) 1398 | -10/Mines | Entered Subcaves 1398 | -10/Subcaves | Accompanied by 2 allies 1504 | -10/Subcaves | Visited Clippyterm 1939 | -10/Subcaves | Learned location of Mines (-10) 2005 | -10/Subcaves | Core integrity fell below 50% 2082 | -10/Subcaves | Visited 4L-MR0's lab 2092 | -10/Subcaves | Found Powered Cannon 2171 | -10/Subcaves | A Subdweller sparked back to life 2171 | -10/Subcaves | A Subdweller sparked back to life 2171 | -10/Subcaves | A Subdweller sparked back to life 2180 | -10/Subcaves | Core integrity fell below 20% 2184 | -10/Subcaves | Destroyed by US-NPG(R) with Subdweller Beam Cannon Last Messages --------------- of a switch. Also why would anyone want that. >>Record! "Uberlauncher" I hear [REDACTED] exploded during the installation process. I did warn them to fully install it before trying to fire, and something tells me that's where things went wrong. Still I'm glad they didn't listen, that way I'm not culpable for whatever they would've done with it. If we're lucky even some of the others got blasted, too. 02088_ Testing Chamber breached. 02092_ Acquired Powered Cannon. 02117_ Acquired 14 matter. 02136_ Subatomizers dissect the Disposable Heat Sink. 02137_ Acquired 1 matter. 02146_ Subatomizers dissect the Disposable Heat Sink. 02171_ US-NPG(R) creaks and sparks as it begins to move. 02171_ P0-BNH(R) creaks and sparks as it begins to move. 02171_ R8-82D(R) creaks and sparks as it begins to move. 02173_ Sub. Monowheel destroyed. 02173_ Critical hit (Meltdown: +200). 02177_ Ion Engine destroyed. 02181_ Com. Wheel destroyed. Map ----- +----------------------------------------------------+ | | | | | | | | | | | | | | | | | ?????????????????????????????????????????????????? | | ?????????????????????????????????????????????????? | | ?????????????????????????????????????????????????? | | ?????????????????????????????????????????????????? | | ?????????????????????????????????????????????????? | | ?????????????????????????????????????????????????? | | ?????????????????????????????????????????????????? | | ?????????????????????????????????????????????????? | | ?????????????????????????????????????????????????? | | ?????????????????????????????????????????????????? | | ?????????????????????????????????????????????????? | | ?????????????????????????????????????????????????? | | ?????????????????????????????????????????????????? | | ??????????????????????#######????????????????????? | | ??????????????????????# & #????????????????????? | | ??????????????????????#< < #????????????????????? | | ??????????????????????#R R #????????????????????? | | ??????????????????????# @R<